bitfinex/quotes_BTCUSD_20250222
["timestamp","ask_amount","ask_price","bid_price","bid_amount"]
[1740252707957,2.2e-07,96729.0,96728.0,0.43743205]
[1740252708153,2.2e-07,96729.0,96728.0,0.47774316]
[1740252708365,2.2e-07,96729.0,96728.0,0.48530316]
[1740252710872,2.2e-07,96729.0,96728.0,0.47774316]
[1740252711079,2.2e-07,96729.0,96728.0,0.48530316]
[1740252712127,2.2e-07,96729.0,96728.0,0.51759987]
[1740252713516,2.2e-07,96729.0,96728.0,0.48530316]
[1740252714329,2.2e-07,96729.0,96728.0,0.51760105]
[1740252714705,2.2e-07,96729.0,96728.0,0.48530316]
[1740252715837,2.2e-07,96729.0,96728.0,0.48700356]
[1740252719292,2.2e-07,96729.0,96728.0,0.51930561]
[1740252725733,2.2e-07,96729.0,96728.0,0.48700356]
[1740252725950,2.2e-07,96729.0,96728.0,0.51175348]
[1740252726111,2.2e-07,96729.0,96728.0,0.51931348]
[1740252726274,2.2e-07,96729.0,96728.0,0.48700356]
[1740252726921,2.2e-07,96729.0,96728.0,0.47944356]
[1740252727254,0.00100005,96738.0,96732.0,0.206756]
[1740252727451,0.00100005,96738.0,96737.0,0.155059]
[1740252727654,0.009061,96739.0,96738.0,0.155057]
[1740252727853,0.009061,96739.0,96738.0,0.25770269]
[1740252728059,0.009061,96739.0,96738.0,0.28438595]
[1740252729034,0.092261,96739.0,96738.0,0.28638595]
[1740252729238,0.092261,96739.0,96738.0,0.29338595]
[1740252729772,0.092261,96739.0,96738.0,0.28638595]
[1740252730671,0.092261,96739.0,96738.0,0.28738595]
[1740252730875,0.092261,96739.0,96738.0,0.28538595]
[1740252731093,0.092261,96739.0,96738.0,0.28938595]
[1740252732326,0.10001124,96739.0,96738.0,0.30971299]
[1740252739029,0.01681124,96739.0,96738.0,0.30971299]
[1740252740894,0.01681124,96739.0,96738.0,0.31141359]
[1740252741270,0.01766154,96739.0,96738.0,0.31141359]
[1740252745817,0.0099113,96739.0,96738.0,0.31141359]
[1740252753117,0.01766938,96739.0,96738.0,0.31141359]
[1740252766813,0.01766938,96739.0,96738.0,0.31151698]
[1740252779979,0.01766938,96739.0,96738.0,0.15645998]
[1740252780185,0.01766938,96739.0,96738.0,0.29118994]
[1740252780998,0.01766938,96739.0,96738.0,0.29018994]
[1740252781441,0.01766938,96739.0,96738.0,0.28618994]
[1740252781658,0.01766938,96739.0,96738.0,0.28918994]
[1740252782236,0.01766938,96739.0,96738.0,0.28618994]
[1740252782440,0.01766938,96739.0,96738.0,0.29018994]
[1740252783145,0.03008274,96739.0,96738.0,0.29018994]
[1740252783753,0.03008274,96739.0,96738.0,0.13513294]
[1740252784071,0.11238274,96739.0,96738.0,0.13513294]
[1740252784293,0.11238274,96739.0,96738.0,0.03248725]
[1740252785251,0.11238274,96739.0,96738.0,0.02848725]
[1740252785374,0.11238274,96739.0,96738.0,0.03148725]
[1740252786542,0.11238274,96739.0,96738.0,0.02848725]
[1740252786749,0.11238274,96739.0,96738.0,0.03148725]
[1740252787527,0.11238274,96739.0,96738.0,0.00480399]
[1740252787727,0.11238274,96739.0,96738.0,0.03148725]
[1740252787928,0.11238274,96739.0,96738.0,0.00480399]
[1740252788138,0.11238274,96739.0,96738.0,0.02848725]
[1740252790713,0.11338279,96739.0,96738.0,0.00180399]
[1740252791912,0.11238274,96739.0,96738.0,0.00180399]
[1740252792323,0.26843879,96739.0,96738.0,0.00180399]
[1740252792523,0.26743874,96739.0,96738.0,0.00180399]
[1740252792723,0.31453874,96739.0,96738.0,0.00180399]
[1740252793169,0.33453874,96739.0,96738.0,0.00180399]
[1740252793509,0.0762,96738.0,96728.0,0.0017004]
[1740252794113,0.00100005,96737.0,96728.0,0.0017004]
[1740252794858,0.02117149,96737.0,96728.0,0.0017004]
[1740252795001,0.17623149,96737.0,96728.0,0.0017004]
[1740252795842,0.155065,96734.0,96728.0,0.0017004]
[1740252796044,0.02117149,96737.0,96728.0,0.0017004]
[1740252796279,0.02017144,96737.0,96728.0,0.0017004]
[1740252796415,0.02017144,96736.0,96728.0,0.0017004]
[1740252797294,0.17523244,96736.0,96728.0,0.0017004]
[1740252797507,0.02017144,96735.0,96728.0,0.0017004]
[1740252799387,0.02017144,96734.0,96728.0,0.0017004]
[1740252800977,0.00775808,96733.0,96728.0,0.0017004]
[1740252801398,0.15606805,96732.0,96728.0,0.0017004]
[1740252801611,0.0762,96731.0,96728.0,0.0017004]
[1740252802889,0.02017144,96730.0,96728.0,0.0027004]
[1740252804153,0.00775808,96729.0,96728.0,0.0017004]
[1740252809908,0.00775808,96729.0,96728.0,0.02227678]
[1740252811522,0.00775808,96729.0,96728.0,0.0204676]
[1740252811678,0.00775808,96729.0,96725.0,0.00985]
[1740252811879,0.00775808,96729.0,96726.0,0.026701]
[1740252812060,0.00775808,96729.0,96725.0,0.00985]
[1740252812259,0.00775808,96729.0,96726.0,0.026701]
[1740252812501,0.00775808,96729.0,96725.0,0.00985]
[1740252813253,0.00775808,96729.0,96726.0,0.026701]
[1740252813399,0.00775808,96729.0,96725.0,0.00985]
[1740252813601,0.00775808,96729.0,96727.0,0.02669952]
[1740252813803,0.00775808,96728.0,96726.0,0.026701]
[1740252814011,0.00775808,96728.0,96725.0,0.00985]
[1740252814213,0.00775808,96728.0,96727.0,0.02669952]
[1740252814415,0.00775808,96728.0,96725.0,0.00985]
[1740252814985,0.00775808,96728.0,96726.0,0.026701]
[1740252815361,0.02017144,96727.0,96726.0,0.026701]
[1740252815787,0.02017144,96727.0,96725.0,0.00985]
[1740252815989,0.02017144,96727.0,96726.0,0.026701]
[1740252816482,0.02017144,96726.0,96725.0,0.00985]
[1740252819512,0.02017144,96726.0,96725.0,0.03655248]
[1740252822394,0.02017144,96726.0,96725.0,0.03740288]
[1740252833089,0.02017144,96726.0,96725.0,0.26978088]
[1740252833317,0.02017144,96726.0,96725.0,0.37242657]
[1740252840816,0.00775808,96726.0,96725.0,0.37242657]
[1740252842103,0.02017144,96726.0,96725.0,0.37242657]
[1740252843459,0.00775808,96726.0,96725.0,0.37242657]
[1740252847777,0.00775808,96726.0,96725.0,0.39320203]
[1740252853119,0.0017008,96728.0,96727.0,0.155075]
[1740252853261,0.0017008,96728.0,96727.0,0.25772069]
[1740252853492,0.0017008,96728.0,96727.0,0.28442021]
[1740252854791,0.00945199,96728.0,96727.0,0.28442021]
[1740252859515,0.00945199,96728.0,96727.0,0.28527061]
[1740252884228,0.0017008,96728.0,96727.0,0.28527061]
[1740252887335,0.0017008,96728.0,96727.0,0.31760417]
[1740252887459,0.0017008,96728.0,96727.0,0.28527061]
[1740252888102,0.0017008,96728.0,96727.0,0.29227061]
[1740252898755,0.0017008,96729.0,96728.0,0.36951485]
[1740252898756,6e-07,96729.0,96728.0,0.36951485]
[1740252898912,6e-07,96729.0,96728.0,0.58564951]
[1740252899116,6e-07,96729.0,96728.0,0.61234755]
[1740252899986,6e-07,96729.0,96728.0,0.61934755]
[1740252900154,6e-07,96729.0,96728.0,0.62134755]
[1740252901138,6e-07,96729.0,96728.0,0.61434755]
[1740252902121,6e-07,96729.0,96728.0,0.61234755]
[1740252902327,6e-07,96729.0,96728.0,0.61534755]
[1740252902531,6e-07,96729.0,96728.0,0.62234755]
[1740252904193,6e-07,96729.0,96728.0,0.64300037]
[1740252906693,6e-07,96729.0,96728.0,0.64470117]
[1740252909142,6e-07,96729.0,96728.0,0.65461217]
[1740252915472,6e-07,96729.0,96728.0,0.64761217]
[1740252915629,6e-07,96729.0,96728.0,0.65161217]
[1740252915835,6e-07,96729.0,96728.0,0.65561217]
[1740252929338,6e-07,96729.0,96728.0,0.74848101]
[1740252933316,6e-07,96729.0,96728.0,0.65561217]
[1740252936453,6e-07,96729.0,96728.0,0.64861217]
[1740252936654,6e-07,96729.0,96728.0,0.64461217]
[1740252936860,6e-07,96729.0,96728.0,0.65161217]
[1740252937137,6e-07,96729.0,96728.0,0.65661217]
[1740252939761,6e-07,96729.0,96728.0,0.64461217]
[1740252940192,6e-07,96729.0,96728.0,0.65761217]
[1740252951143,6e-07,96729.0,96728.0,0.52651217]
[1740252977943,6e-07,96729.0,96728.0,0.51351217]
[1740252978142,6e-07,96729.0,96728.0,0.52051217]
[1740252979389,6e-07,96729.0,96728.0,0.52751217]
[1740252991234,0.0801,96751.0,96728.0,0.35178535]
[1740252991463,0.08014304,96751.0,96750.0,0.155038]
[1740252991701,0.08014304,96751.0,96750.0,0.25768369]
[1740252991916,0.08014304,96751.0,96750.0,0.28434921]
[1740252993425,0.08014304,96751.0,96750.0,0.28534921]
[1740252993824,0.08014304,96751.0,96750.0,0.29590719]
[1740252994637,0.08014304,96751.0,96750.0,0.30090719]
[1740252997801,0.08014304,96751.0,96750.0,0.32133519]
[1740252998940,0.08099344,96751.0,96750.0,0.32133519]
[1740253008780,0.08099344,96751.0,96750.0,0.30090719]
[1740253013929,0.00089344,96751.0,96750.0,0.30090719]
[1740253023633,0.00089344,96751.0,96750.0,0.29034921]
[1740253024310,0.00865465,96751.0,96750.0,0.29034921]
[1740253025982,0.00865465,96751.0,96750.0,0.30064586]
[1740253031640,0.00089344,96751.0,96750.0,0.30064586]
[1740253035413,0.00089344,96751.0,96750.0,0.29034921]
[1740253041250,0.00865243,96751.0,96750.0,0.29034921]
[1740253043737,0.00865243,96751.0,96750.0,0.03266552]
[1740253043972,0.00865243,96751.0,96750.0,0.18770352]
[1740253044473,0.00865243,96751.0,96750.0,0.02766552]
[1740253044725,0.00865243,96751.0,96750.0,0.18270352]
[1740253044970,0.00865243,96751.0,96750.0,0.18670352]
[1740253045929,0.00865243,96751.0,96750.0,0.18270352]
[1740253046168,0.00865243,96751.0,96750.0,0.18570352]
[1740253046612,0.00865243,96751.0,96750.0,0.18470352]
[1740253057025,0.00865243,96751.0,96750.0,0.28734921]
[1740253057874,0.00089344,96751.0,96750.0,0.28434921]
[1740253058306,0.00089344,96751.0,96750.0,0.28834921]
[1740253068937,0.00089344,96751.0,96750.0,0.55290434]
[1740253069152,0.00089344,96751.0,96750.0,0.59940434]
[1740253069348,4.4e-07,96751.0,96750.0,0.60994519]
[1740253069642,4.4e-07,96751.0,96750.0,0.61494519]
[1740253070032,4.4e-07,96751.0,96750.0,0.60994519]
[1740253070339,4.4e-07,96751.0,96750.0,0.61694519]
[1740253070752,4.4e-07,96751.0,96750.0,0.58569006]
[1740253070990,4.4e-07,96751.0,96750.0,0.58469006]
[1740253071194,4.4e-07,96751.0,96750.0,0.58769006]
[1740253072806,4.4e-07,96751.0,96750.0,0.58069006]
[1740253073126,4.4e-07,96751.0,96750.0,0.58769006]
[1740253073322,4.4e-07,96751.0,96750.0,0.58469006]
[1740253073777,4.4e-07,96751.0,96750.0,0.58869006]
[1740253073957,4.4e-07,96751.0,96750.0,0.59637204]
[1740253075036,4.4e-07,96751.0,96750.0,0.60051304]
[1740253090201,4.4e-07,96751.0,96750.0,0.60221384]
[1740253095531,4.4e-07,96751.0,96750.0,0.63446288]
[1740253097746,4.4e-07,96751.0,96750.0,0.48093384]
[1740253099345,4.4e-07,96751.0,96750.0,0.47341384]
[1740253099575,4.4e-07,96751.0,96750.0,0.48093384]
[1740253110143,4.4e-07,96751.0,96750.0,0.51321158]
[1740253118234,4.4e-07,96751.0,96750.0,0.68304961]
[1740253118878,4.4e-07,96751.0,96750.0,0.73274961]
[1740253119538,4.4e-07,96751.0,96750.0,0.72874961]
[1740253119741,4.4e-07,96751.0,96750.0,0.72774961]
[1740253119954,4.4e-07,96751.0,96750.0,0.73474961]
[1740253120159,4.4e-07,96751.0,96750.0,0.72874961]
[1740253120370,4.4e-07,96751.0,96750.0,0.72774961]
[1740253120788,4.4e-07,96751.0,96750.0,0.73474961]
[1740253121052,4.4e-07,96751.0,96750.0,0.64161158]
[1740253121366,4.4e-07,96751.0,96750.0,0.96531158]
[1740253122918,4.4e-07,96751.0,96750.0,0.83891158]
[1740253123977,4.4e-07,96751.0,96750.0,0.83139158]
[1740253124191,4.4e-07,96751.0,96750.0,0.83891158]
[1740253127047,4.4e-07,96751.0,96750.0,0.51521158]
[1740253134248,4.4e-07,96751.0,96750.0,0.50769158]
[1740253134469,4.4e-07,96751.0,96750.0,0.51521158]
[1740253153016,0.0017002,96755.0,96751.0,0.16470922]
[1740253153220,0.00213069,96755.0,96753.0,0.15]
[1740253153419,0.00213069,96755.0,96754.0,0.28492343]
[1740253153787,0.00213069,96755.0,96754.0,0.31597743]
[1740253154721,0.00213069,96755.0,96754.0,0.47100943]
[1740253156085,0.00213069,96755.0,96754.0,0.47600943]
[1740253157640,0.00213069,96755.0,96754.0,0.48300943]
[1740253162296,0.00213069,96755.0,96754.0,0.50349088]
[1740253164535,0.00213069,96755.0,96754.0,0.59643597]
[1740253171739,0.00213069,96755.0,96754.0,0.61097682]
[1740253173923,0.00213069,96755.0,96754.0,0.59643597]
[1740253174561,0.00213069,96755.0,96754.0,0.56415823]
[1740253175385,0.00213069,96755.0,96754.0,0.59081783]
[1740253175977,0.00213069,96755.0,96754.0,0.49787274]
[1740253184841,0.00213069,96755.0,96754.0,0.46681874]
[1740253211328,0.00213069,96755.0,96754.0,0.49906]
[1740253212261,0.00213069,96755.0,96754.0,0.49905719]
[1740253216084,0.00213069,96755.0,96754.0,0.46681874]
[1740253216293,0.00213069,96755.0,96754.0,0.49905365]
[1740253223976,0.00213069,96755.0,96754.0,0.59193749]
[1740253225651,0.00213069,96755.0,96754.0,0.60647834]
[1740253226019,0.00213069,96755.0,96754.0,0.68257834]
[1740253226430,2.9e-07,96762.0,96761.0,0.31956185]
[1740253226648,4.33e-05,96762.0,96761.0,0.55719171]
[1740253227655,4.33e-05,96762.0,96761.0,0.56419171]
[1740253227860,4.33e-05,96762.0,96761.0,0.57019171]
[1740253232162,4.33e-05,96762.0,96761.0,0.59063242]
[1740253232726,4.33e-05,96762.0,96761.0,0.55839751]
[1740253236495,4.33e-05,96762.0,96761.0,0.59054383]
[1740253238561,4.33e-05,96762.0,96761.0,0.58454383]
[1740253238765,4.33e-05,96762.0,96761.0,0.57754383]
[1740253239017,4.33e-05,96762.0,96761.0,0.59054383]
[1740253242707,4.33e-05,96762.0,96761.0,0.55839751]
[1740253251258,4.33e-05,96762.0,96761.0,0.56009831]
[1740253253174,4.33e-05,96762.0,96761.0,0.59225127]
[1740253253397,4.33e-05,96762.0,96761.0,0.56009831]
[1740253253807,4.33e-05,96762.0,96761.0,0.59225395]
[1740253254204,4.33e-05,96762.0,96761.0,0.56009831]
[1740253254418,4.33e-05,96762.0,96761.0,0.59225735]
[1740253254626,4.33e-05,96762.0,96761.0,0.56009831]
[1740253256314,4.33e-05,96762.0,96761.0,0.5922665]
[1740253257668,4.33e-05,96762.0,96761.0,0.5161665]
[1740253268276,4.33e-05,96762.0,96761.0,0.5472175]
[1740253273664,4.33e-05,96762.0,96761.0,0.63977416]
[1740253275988,4.33e-05,96762.0,96761.0,0.5472175]
[1740253276756,4.33e-05,96762.0,96761.0,0.5161665]
[1740253280720,4.33e-05,96762.0,96761.0,0.5236865]
[1740253305230,4.33e-05,96762.0,96761.0,0.5547375]
[1740253316165,4.33e-05,96762.0,96761.0,0.6318375]
[1740253324889,4.33e-05,96762.0,96761.0,0.6243175]
[1740253325039,4.33e-05,96762.0,96761.0,0.6318375]
[1740253326156,4.33e-05,96762.0,96761.0,0.6315663]
[1740253329003,4.33e-05,96762.0,96761.0,0.6240463]
[1740253329209,4.33e-05,96762.0,96761.0,0.6315663]
[1740253335090,4.33e-05,96762.0,96761.0,0.6240463]
[1740253335307,4.33e-05,96762.0,96761.0,0.6315663]
[1740253353720,4.33e-05,96762.0,96761.0,0.5544663]
[1740253354136,4.33e-05,96762.0,96761.0,0.5469463]
[1740253354336,4.33e-05,96762.0,96761.0,0.5544663]
[1740253356380,4.33e-05,96762.0,96761.0,0.5469463]
[1740253356559,4.33e-05,96762.0,96761.0,0.5544663]
[1740253359360,4.33e-05,96762.0,96761.0,0.5469463]
[1740253359579,4.33e-05,96762.0,96761.0,0.5544663]
[1740253365059,4.33e-05,96762.0,96761.0,0.5234153]
[1740253370454,4.33e-05,96762.0,96761.0,0.5158953]
[1740253370626,4.33e-05,96762.0,96761.0,0.49124711]
[1740253371180,4.33e-05,96762.0,96761.0,0.48372711]
[1740253371354,4.33e-05,96762.0,96761.0,0.47072711]
[1740253371578,4.33e-05,96762.0,96761.0,0.48172711]
[1740253372063,4.33e-05,96762.0,96761.0,0.47772711]
[1740253372267,4.33e-05,96762.0,96761.0,0.48172711]
[1740253372446,4.33e-05,96762.0,96761.0,0.47772711]
[1740253372636,4.33e-05,96762.0,96761.0,0.48172711]
[1740253372834,4.33e-05,96762.0,96761.0,0.47472711]
[1740253373100,4.33e-05,96762.0,96761.0,0.48172711]
[1740253373482,4.33e-05,96762.0,96761.0,0.47472711]
[1740253373865,4.33e-05,96762.0,96761.0,0.48172711]
[1740253401462,4.33e-05,96762.0,96761.0,0.5139078]
[1740253406576,4.33e-05,96762.0,96761.0,0.48725854]
[1740253410244,4.33e-05,96762.0,96761.0,0.5139078]
[1740253422121,4.33e-05,96762.0,96761.0,0.5912078]
[1740253423504,4.33e-05,96762.0,96761.0,0.5842078]
[1740253423702,4.33e-05,96762.0,96761.0,0.5802078]
[1740253423911,4.33e-05,96762.0,96761.0,0.5912078]
[1740253424421,4.33e-05,96762.0,96761.0,0.5842078]
[1740253424600,4.33e-05,96762.0,96761.0,0.5882078]
[1740253425666,4.33e-05,96762.0,96761.0,0.5952078]
[1740253434829,4.33e-05,96762.0,96761.0,0.5802078]
[1740253435045,4.33e-05,96762.0,96761.0,0.5932078]
[1740253435765,4.33e-05,96762.0,96761.0,0.5862078]
[1740253435979,4.33e-05,96762.0,96761.0,0.5932078]
[1740253436924,4.33e-05,96762.0,96761.0,0.5159078]
[1740253438108,4.33e-05,96762.0,96761.0,0.48372711]
[1740253438310,4.33e-05,96762.0,96761.0,0.46918626]
[1740253439549,4.33e-05,96762.0,96761.0,0.46218626]
[1740253439755,4.33e-05,96762.0,96761.0,0.46918626]
[1740253440111,4.33e-05,96762.0,96761.0,0.46318626]
[1740253440332,4.33e-05,96762.0,96761.0,0.46618626]
[1740253440532,0.0796433,96762.0,96761.0,0.34309986]
[1740253440915,0.0796433,96762.0,96761.0,0.34009986]
[1740253441073,0.0796433,96762.0,96761.0,0.34309986]
[1740253441386,0.0796433,96762.0,96761.0,0.19309986]
[1740253441606,0.0796433,96762.0,96761.0,0.18609986]
[1740253441839,0.0796433,96762.0,96761.0,0.18809986]
[1740253442081,0.0796433,96762.0,96761.0,0.18909986]
[1740253445022,0.0796433,96762.0,96761.0,0.18409986]
[1740253445219,0.0796433,96762.0,96761.0,0.18909986]
[1740253445565,0.0796433,96762.0,96761.0,0.18409986]
[1740253446012,0.0796433,96762.0,96761.0,0.18909986]
[1740253446322,0.0796433,96762.0,96761.0,0.18809986]
[1740253447082,0.0796433,96762.0,96761.0,0.18909986]
[1740253447287,0.0796433,96762.0,96761.0,0.18409986]
[1740253447504,0.0796433,96762.0,96761.0,0.18709986]
[1740253447937,0.0796433,96762.0,96761.0,0.18309986]
[1740253448340,0.0796433,96762.0,96761.0,0.03235006]
[1740253448563,0.08064335,96762.0,96761.0,0.03235006]
[1740253448771,0.0796433,96762.0,96761.0,0.03235006]
[1740253449217,0.0796433,96762.0,96761.0,0.02835006]
[1740253450543,0.0796433,96762.0,96761.0,0.03135006]
[1740253450759,0.08737647,96762.0,96761.0,0.03135006]
[1740253450938,0.08737647,96762.0,96761.0,0.02835006]
[1740253451320,0.08737647,96762.0,96761.0,0.03035006]
[1740253454808,0.08737647,96762.0,96761.0,0.0037008]
[1740253455129,0.08837652,96762.0,96761.0,0.0037008]
[1740253455535,0.08737647,96762.0,96761.0,0.0037008]
[1740253455784,0.08837652,96762.0,96761.0,0.0037008]
[1740253455980,0.08737647,96762.0,96761.0,0.02432258]
[1740253456358,0.08737647,96762.0,96761.0,0.05097184]
[1740253462893,0.08737647,96762.0,96761.0,0.20599284]
[1740253468555,0.00777647,96762.0,96761.0,0.20599284]
[1740253492514,0.00777647,96762.0,96761.0,0.18537106]
[1740253578897,0.00777647,96762.0,96761.0,0.03035006]
[1740253579316,0.16379552,96762.0,96761.0,0.03035006]
[1740253579494,0.00777647,96762.0,96761.0,0.0037008]
[1740253579777,0.00777647,96762.0,96761.0,0.03035006]
[1740253580367,0.00777647,96762.0,96761.0,0.0037008]
[1740253580594,0.00777647,96762.0,96761.0,0.02835006]
[1740253580748,0.00877647,96762.0,96761.0,0.02835006]
[1740253580928,0.02118952,96762.0,96761.0,0.02835006]
[1740253581382,0.02018952,96762.0,96761.0,0.02835006]
[1740253581609,0.02118952,96762.0,96761.0,0.02835006]
[1740253581728,0.02118952,96762.0,96761.0,0.0017008]
[1740253581960,0.02118952,96762.0,96761.0,0.02835006]
[1740253582663,0.02118952,96762.0,96761.0,0.0017008]
[1740253584066,0.02118952,96762.0,96761.0,0.02835006]
[1740253584446,0.35088952,96762.0,96761.0,0.02835006]
[1740253585457,0.35735851,96762.0,96761.0,0.02835006]
[1740253586381,0.35735851,96762.0,96761.0,0.0017008]
[1740253588109,0.35735851,96762.0,96761.0,0.02835006]
[1740253589379,0.35735851,96762.0,96761.0,0.0017008]
[1740253590208,0.35735851,96762.0,96760.0,0.00956676]
[1740253590585,0.35735851,96762.0,96761.0,0.02664926]
[1740253591059,0.35735851,96762.0,96760.0,0.00956676]
[1740253591060,0.02665851,96762.0,96760.0,0.00956676]
[1740253591203,0.02765851,96762.0,96760.0,0.00956676]
[1740253591411,0.02765851,96762.0,96761.0,0.02664926]
[1740253593379,0.02665851,96762.0,96761.0,0.02664926]
[1740253593536,0.02765851,96762.0,96761.0,0.02664926]
[1740253594346,0.02765851,96762.0,96760.0,0.00956676]
[1740253594572,0.02765851,96762.0,96761.0,0.02664926]
[1740253596925,0.02665851,96762.0,96761.0,0.02664926]
[1740253597226,0.02765851,96762.0,96761.0,0.02664926]
[1740253597526,0.02665851,96762.0,96761.0,0.02664926]
[1740253597889,0.02765851,96762.0,96761.0,0.02664926]
[1740253598286,0.02765851,96762.0,96760.0,0.01126756]
[1740253598475,0.02765851,96762.0,96761.0,0.02664926]
[1740253598704,0.02765851,96762.0,96760.0,0.01126756]
[1740253598919,0.02765851,96762.0,96761.0,0.02664926]
[1740253599283,0.00651229,96762.0,96761.0,0.02664926]
[1740253599811,0.00751229,96762.0,96761.0,0.02664926]
[1740253599993,0.00651229,96762.0,96761.0,0.02664926]
[1740253600380,0.00751229,96762.0,96761.0,0.02664926]
[1740253600938,0.02767616,96762.0,96761.0,0.02664926]
[1740253601340,0.02767616,96762.0,96760.0,0.01126756]
[1740253601899,0.02767616,96762.0,96761.0,0.02664926]
[1740253602217,0.02767616,96762.0,96760.0,0.01126756]
[1740253602595,0.02667616,96762.0,96761.0,0.02664926]
[1740253603184,0.02767616,96762.0,96761.0,0.02664926]
[1740253603748,0.02667616,96762.0,96761.0,0.02664926]
[1740253603903,0.02667616,96762.0,96760.0,0.01126756]
[1740253604080,0.02767616,96762.0,96761.0,0.02664926]
[1740253604280,0.02767616,96762.0,96760.0,0.01126756]
[1740253604481,0.02767616,96762.0,96761.0,0.02664926]
[1740253604804,0.02767616,96762.0,96760.0,0.01126756]
[1740253605214,0.02767616,96762.0,96761.0,0.02664926]
[1740253605670,0.02667616,96762.0,96760.0,0.01126756]
[1740253606008,0.02667616,96762.0,96761.0,0.02664926]
[1740253606311,0.02667616,96762.0,96760.0,0.01126756]
[1740253606610,0.02767616,96762.0,96760.0,0.01126756]
[1740253607061,0.02667616,96762.0,96760.0,0.01126756]
[1740253607271,0.02767616,96762.0,96760.0,0.01126756]
[1740253607649,0.00646899,96761.0,96760.0,0.01126756]
[1740253608064,0.02663286,96761.0,96760.0,0.01126756]
[1740253609816,0.02763286,96761.0,96760.0,0.01126756]
[1740253621845,0.18265386,96761.0,96760.0,0.01126756]
[1740253622584,0.02763286,96761.0,96760.0,0.01126756]
[1740253624227,0.03798373,96761.0,96760.0,0.01126756]
[1740253626547,0.03798373,96761.0,96760.0,0.0379183]
[1740253626964,0.03798373,96761.0,96760.0,0.01126756]
[1740253630466,0.03883413,96761.0,96760.0,0.01126756]
[1740253631277,0.02848326,96761.0,96760.0,0.01126756]
[1740253644986,0.03883417,96761.0,96760.0,0.01126756]
[1740253647180,0.03859519,96761.0,96760.0,0.01126756]
[1740253649005,0.02824428,96761.0,96760.0,0.01126756]
[1740253649216,0.02824428,96761.0,96760.0,0.24208956]
[1740253653128,0.02201427,96761.0,96760.0,0.24208956]
[1740253661766,0.02201427,96761.0,96760.0,0.25239592]
[1740253675018,0.02101427,96761.0,96760.0,0.25239592]
[1740253675194,0.02101427,96761.0,96760.0,0.25339592]
[1740253675994,0.00860573,96761.0,96760.0,0.25339592]
[1740253676574,0.00860573,96761.0,96760.0,0.25239592]
[1740253676798,0.00860573,96761.0,96760.0,0.25539592]
[1740253677209,0.00860573,96761.0,96760.0,0.25239592]
[1740253677634,0.00860573,96761.0,96760.0,0.36004161]
[1740253678371,0.0008504,96761.0,96760.0,0.36104161]
[1740253678583,0.0008504,96761.0,96760.0,0.40744161]
[1740253678747,0.0008504,96761.0,96760.0,0.55744161]
[1740253687786,0.0008504,96761.0,96760.0,0.58409235]
[1740253689021,0.0008504,96761.0,96760.0,0.57909235]
[1740253689224,0.0008504,96761.0,96760.0,0.57809235]
[1740253689440,0.0008504,96761.0,96760.0,0.58809235]
[1740253692655,0.0008504,96761.0,96760.0,0.59557235]
[1740253702387,0.0008504,96761.0,96760.0,0.58809235]
[1740253702590,0.0008504,96761.0,96760.0,0.59557235]
[1740253702955,0.0008504,96761.0,96760.0,0.58809235]
[1740253703155,0.0008504,96761.0,96760.0,0.59557235]
[1740253718968,0.0008504,96761.0,96760.0,0.62775343]
[1740253724414,0.0008504,96761.0,96760.0,0.63189443]
[1740253725252,0.0008504,96761.0,96760.0,0.62775343]
[1740253726431,0.0008504,96761.0,96760.0,0.59557235]
[1740253726637,0.0008504,96761.0,96760.0,0.62773632]
[1740253727073,0.0008504,96761.0,96760.0,0.59557235]
[1740253740945,7e-07,96769.0,96762.0,0.0808]
[1740253741103,7e-07,96769.0,96768.0,0.42219554]
[1740253741692,7e-07,96769.0,96768.0,0.44883445]
[1740253741807,7e-07,96769.0,96768.0,0.48096703]
[1740253742219,7e-07,96769.0,96768.0,0.56176703]
[1740253742834,7e-07,96769.0,96768.0,0.56676703]
[1740253743465,7e-07,96769.0,96768.0,0.53463445]
[1740253743947,7e-07,96769.0,96768.0,0.54163445]
[1740253746528,7e-07,96769.0,96768.0,0.55081505]
[1740253746900,0.000851,96769.0,96768.0,0.57121105]
[1740253756806,0.000851,96769.0,96768.0,0.4683902]
[1740253756962,0.000851,96769.0,96768.0,0.4758702]
[1740253771107,0.000851,96769.0,96768.0,0.44923129]
[1740253774581,0.000851,96769.0,96768.0,0.4758702]
[1740253784874,0.000851,96769.0,96768.0,0.4683902]
[1740253785688,0.000851,96769.0,96768.0,0.4563902]
[1740253785932,0.000851,96769.0,96768.0,0.4593902]
[1740253786431,0.000851,96769.0,96768.0,0.4673902]
[1740253787901,0.000851,96769.0,96768.0,0.4603902]
[1740253788222,0.000851,96769.0,96768.0,0.4653902]
[1740253791133,0.000851,96769.0,96768.0,0.4653502]
[1740253835364,0.000851,96769.0,96768.0,0.47491696]
[1740253852937,0.000851,96769.0,96768.0,0.47487696]
[1740253913736,0.000851,96769.0,96768.0,0.47483696]
[1740253920267,0.00861095,96769.0,96768.0,0.47483696]
[1740253921448,0.000851,96769.0,96768.0,0.47483696]
[1740253921843,0.00861101,96769.0,96768.0,0.47483696]
[1740253930861,0.00861101,96769.0,96768.0,0.37231127]
[1740253935114,0.00833717,96769.0,96768.0,0.37231127]
[1740253953925,0.00833717,96769.0,96768.0,0.36331127]
[1740253954093,0.00833717,96769.0,96768.0,0.36431127]
[1740253954496,0.00833717,96769.0,96768.0,0.33767236]
[1740253954704,0.00833717,96769.0,96768.0,0.36431127]
[1740253954899,0.00833717,96769.0,96768.0,0.36931127]
[1740253969327,0.00057716,96769.0,96768.0,0.36931127]
[1740253971977,0.00057716,96769.0,96768.0,0.55265696]
[1740253972220,0.00057716,96769.0,96768.0,0.59925696]
[1740253972861,0.00057716,96769.0,96768.0,0.59425696]
[1740253973005,0.00057716,96769.0,96768.0,0.59325696]
[1740253973220,0.00057716,96769.0,96768.0,0.59625696]
[1740253974652,0.00057716,96769.0,96768.0,0.59621696]
[1740253975796,0.00057716,96769.0,96768.0,0.60121696]
[1740253976165,0.00057716,96769.0,96768.0,0.59621696]
[1740253976576,0.00057716,96769.0,96768.0,0.60321696]
[1740253989301,0.00057716,96769.0,96768.0,0.59621696]
[1740253989491,0.00057716,96769.0,96768.0,0.59321696]
[1740253989834,0.00057716,96769.0,96768.0,0.59721696]
[1740253990178,0.00057716,96769.0,96768.0,0.60421696]
[1740253991276,0.00057716,96769.0,96768.0,0.61169696]
[1740253998002,0.00057716,96769.0,96768.0,0.60469696]
[1740253998290,0.00057716,96769.0,96768.0,0.61169696]
[1740253999243,0.00057716,96769.0,96768.0,0.60769696]
[1740253999787,0.00057716,96769.0,96768.0,0.61269696]
[1740254015529,1.6e-07,96769.0,96768.0,0.65943943]
[1740254020894,1.6e-07,96769.0,96768.0,0.7520971]
[1740254023380,1.6e-07,96769.0,96768.0,0.65943943]
[1740254029134,1.6e-07,96769.0,96768.0,0.66357943]
[1740254034112,1.6e-07,96769.0,96768.0,0.75626021]
[1740254035519,1.6e-07,96769.0,96768.0,0.75622021]
[1740254044249,1.6e-07,96769.0,96768.0,0.61437936]
[1740254053849,1.6e-07,96769.0,96768.0,0.52169858]
[1740254055173,1.6e-07,96769.0,96768.0,0.51421858]
[1740254055389,1.6e-07,96769.0,96768.0,0.52165858]
[1740254055967,1.6e-07,96769.0,96768.0,0.51421858]